fUSD/lending_fUSD_20260224
["ID","MTS","AMOUNT","RATE_DAILY","PERIOD"]
[406613981,1771974671404,-459.04956674,0.0004117,2]
[406613982,1771974671415,-371.60758876,0.0004117,2]
[406613983,1771974671426,-301.55927827,0.0004117,2]
[406613984,1771974671436,-301.03552101,0.0004117,2]
[406613985,1771974671447,-301.14618371,0.0004117,2]
[406613986,1771974671458,-300.0,0.0004117,2]
[406613987,1771974671468,-518.87544826,0.0004117,2]
[406613988,1771974671481,-306.40829874,0.0004117,2]
[406613989,1771974671493,-301.07292082,0.0004117,2]
[406613990,1771974671504,-300.0,0.0004117,2]
[406613991,1771974671516,-300.0,0.0004117,2]
[406613992,1771974671528,-300.0,0.0004117,2]
[406613993,1771974671541,-458.79836793,0.0004117,2]
[406613994,1771974671554,-1082.68861493,0.0004117,2]
[406613995,1771974671565,-300.0,0.0004117,2]
[406613996,1771974671576,-856.17658068,0.0004117,2]
[406613997,1771974671587,-306.18954585,0.0004117,2]
[406613998,1771974671600,-884.99175919,0.0004117,2]
[406613999,1771974671611,-1564.27319609,0.0004117,2]
[406614000,1771974671627,-307.45431529,0.0004117,2]
[406614001,1771974671638,-459.04956674,0.0004117,2]
[406614002,1771974671649,-371.60758876,0.0004117,2]
[406614003,1771974671659,-301.55927827,0.0004117,2]
[406614004,1771974671670,-518.87544826,0.0004117,2]
[406614005,1771974671681,-306.40829874,0.0004117,2]
[406614006,1771974671692,-300.0,0.0004117,2]
[406614007,1771974671702,-301.61278358,0.0004117,2]
[406614008,1771974671713,-300.0,0.0004117,2]
[406614009,1771974671725,-1082.68861493,0.0004117,2]
[406614010,1771974671735,-435.11937565,0.0004117,2]
[406614011,1771974671746,-856.17658068,0.0004117,2]
[406614012,1771974671757,-306.18954585,0.0004117,2]
[406614013,1771974671767,-884.99175919,0.0004117,2]
[406614014,1771974671778,-1564.27319609,0.0004117,2]
[406614015,1771974671789,-307.45431529,0.0004117,2]
[406614016,1771974671800,-459.04956674,0.0004117,2]
[406614017,1771974671812,-371.60758876,0.0004117,2]
[406614018,1771974671823,-301.55927827,0.0004117,2]
[406614019,1771974671835,-518.87544826,0.0004117,2]
[406614020,1771974671846,-306.40829874,0.0004117,2]
[406614021,1771974671857,-300.0,0.0004117,2]
[406614022,1771974671868,-300.0,0.0004117,2]
[406614023,1771974671879,-1082.68861493,0.0004117,2]
[406614024,1771974671890,-856.17658068,0.0004117,2]
[406614025,1771974672089,-306.18954585,0.0004117,2]
[406614026,1771974672120,-884.99175919,0.0004117,2]
[406614027,1771974672133,-1564.27319609,0.0004117,2]
[406614028,1771974672142,-307.45431529,0.0004117,2]
[406614029,1771974672152,-459.04956674,0.0004117,2]
[406614030,1771974672162,-371.60758876,0.0004117,2]
[406614031,1771974672171,-530.3473826,0.0004117,2]
[406614032,1771974672180,-518.87544826,0.0004117,2]
[406614033,1771974672189,-306.40829874,0.0004117,2]
[406614034,1771974672199,-409.18317358,0.0004117,2]
[406614035,1771974672208,-300.0,0.0004117,2]
[406614036,1771974672217,-1082.68861493,0.0004117,2]
[406614037,1771974672226,-856.17658068,0.0004117,2]
[406614038,1771974672235,-306.18954585,0.0004117,2]
[406614039,1771974672245,-884.99175919,0.0004117,2]
[406614040,1771974672254,-1564.27319609,0.0004117,2]
[406614041,1771974672263,-307.45431529,0.0004117,2]
[406614042,1771974672272,-459.04956674,0.0004117,2]
[406614043,1771974672282,-371.60758876,0.0004117,2]
[406614044,1771974672291,-518.87544826,0.0004117,2]
[406614045,1771974672300,-306.40829874,0.0004117,2]
[406614046,1771974672308,-300.0,0.0004117,2]
[406614047,1771974672318,-1082.68861493,0.0004117,2]
[406614048,1771974672327,-856.17658068,0.0004117,2]
[406614049,1771974672336,-306.18954585,0.0004117,2]
[406614050,1771974672345,-884.99175919,0.0004117,2]
[406614051,1771974672354,-961.6676644,0.0004117,2]
[406614052,1771974672363,-307.45431529,0.0004117,2]
[406614053,1771974672372,-459.04956674,0.0004117,2]
[406614054,1771974672381,-371.60758876,0.0004117,2]
[406614055,1771974672389,-518.87544826,0.0004117,2]
[406614056,1771974672398,-306.40829874,0.0004117,2]
[406614057,1771974672407,-300.0,0.0004117,2]
[406614058,1771974672416,-1082.68861493,0.0004117,2]
[406614059,1771974672425,-856.17658068,0.0004117,2]
[406614060,1771974672435,-306.18954585,0.0004117,2]
[406614061,1771974672444,-884.99175919,0.0004117,2]
[406614062,1771974672452,-307.45431529,0.0004117,2]
[406614063,1771974672462,-459.04956674,0.0004117,2]
[406614064,1771974672472,-371.60758876,0.0004117,2]
[406614065,1771974672485,-518.87544826,0.0004117,2]
[406614066,1771974672494,-306.40829874,0.0004117,2]
[406614067,1771974672504,-300.0,0.0004117,2]
[406614068,1771974672513,-1082.68861493,0.0004117,2]
[406614069,1771974672523,-841.31100935,0.0004117,2]
[406614070,1771974672533,-306.18954585,0.0004117,2]
[406614071,1771974672542,-869.84937084,0.0004117,2]
[406614072,1771974672552,-302.1952955,0.0004117,2]
[406614073,1771974672562,-451.30931498,0.0004117,2]
[406614074,1771974672571,-371.60758876,0.0004117,2]
[406614075,1771974672580,-518.87544826,0.0004117,2]
[406614076,1771974672589,-306.40829874,0.0004117,2]
[406614077,1771974672600,-300.0,0.0004117,2]
[406614078,1771974672609,-1130.91956259,0.0004117,2]
[406614079,1771974672619,-306.18954585,0.0004117,2]
[406614080,1771974672629,-365.52748149,0.0004117,2]
[406614081,1771974672639,-513.71286325,0.0004117,2]
[406614082,1771974672648,-306.40829874,0.0004117,2]
[406614083,1771974672658,-300.0,0.0004117,2]
[406614084,1771974672667,-306.18954585,0.0004117,2]
[406614085,1771974672677,-302.97539666,0.0004117,2]
[406614086,1771974672687,-300.0,0.0004117,2]
[406614087,1771974672695,-306.18954585,0.0004117,2]
[406614088,1771974672705,-300.0,0.0004117,2]
[406614089,1771974672714,-1999.0,0.00041179,30]
[406614090,1771974672723,-500.0,0.00041187,30]
[406614091,1771974672732,-1700.0,0.0004119,30]
[406614092,1771974672741,-1700.0,0.00041193,30]
[406614093,1771974672750,-253.43383125,0.00041206,60]
[406614094,1771974672759,-900.0,0.00041242,30]
[406614095,1771974672769,-800.0,0.00041262,30]
[406614096,1771974672778,-1100.0,0.00041269,30]
[406614097,1771974672788,-500.0,0.00041274,30]
[406614098,1771974672796,-500.0,0.00041309,30]
[406614099,1771974672806,-154.0,0.000414,120]
[406614100,1771974672815,-700.0,0.00041402,30]
[406614101,1771974672824,-900.0,0.00041404,30]
[406614102,1771974672833,-900.0,0.00041405,30]
[406614103,1771974672842,-500.0,0.00041405,30]
[406614104,1771974672850,-900.0,0.00041407,30]
[406614105,1771974672859,-900.0,0.00041412,30]
[406614106,1771974672869,-900.0,0.00041465,30]
[406614107,1771974672878,-1700.0,0.00041475,30]
[406614108,1771974672887,-500.0,0.0004148,61]
[406614109,1771974672896,-1800.0,0.00041518,30]
[406614110,1771974672906,-500.0,0.00041521,30]
[406614111,1771974672916,-1800.0,0.00041521,30]
[406614112,1771974672927,-1100.0,0.00041525,30]
[406614113,1771974672937,-900.0,0.00041533,30]
[406614114,1771974672946,-1700.0,0.00041538,30]
[406614115,1771974672957,-900.0,0.00041546,30]
[406614116,1771974672966,-1800.0,0.00041556,30]
[406614117,1771974672975,-900.0,0.0004156,30]
[406614118,1771974672984,-900.0,0.00041565,30]
[406614119,1771974672996,-1700.0,0.00041597,30]
[406614120,1771974673005,-500.0,0.00041603,30]
[406614121,1771974673014,-500.0,0.00041618,30]
[406614122,1771974673023,-700.0,0.00041622,30]
[406614123,1771974673032,-500.0,0.00041626,30]
[406614124,1771974673041,-700.0,0.00041632,30]
[406614125,1771974673050,-1800.0,0.00041636,30]
[406614126,1771974673060,-534.39884552,0.00041644,10]
[406614127,1771974673069,-900.0,0.00041645,30]
[406614128,1771974673079,-800.0,0.00041646,30]
[406614129,1771974673088,-500.0,0.00041662,30]
[406614130,1771974673097,-500.0,0.00041663,30]
[406614131,1771974673106,-1800.0,0.00041704,30]
[406614132,1771974673115,-900.0,0.00041708,30]
[406614133,1771974673124,-747.06830571,0.0004171,30]
[406614134,1771974673134,-900.0,0.00041731,30]
[406614135,1771974673143,-1700.0,0.00041737,30]
[406614136,1771974673152,-500.0,0.00041739,30]
[406614137,1771974673161,-1100.0,0.00041758,30]
[406614138,1771974673170,-700.0,0.0004178,30]
[406614139,1771974673179,-700.0,0.00041783,30]
[406614140,1771974673189,-500.0,0.00041785,30]
[406614141,1771974673198,-1700.0,0.00041788,30]
[406614142,1771974673207,-800.0,0.00041792,30]
[406614143,1771974673217,-900.0,0.00041794,30]
[406614144,1771974673226,-500.0,0.00041799,30]
[406614145,1771974673235,-165.11,0.000418,30]
[406614146,1771974673245,-800.0,0.00041819,30]
[406614147,1771974673254,-500.0,0.00041827,30]
[406614148,1771974673262,-500.0,0.00041844,30]
[406614149,1771974673271,-1700.0,0.00041868,30]
[406614150,1771974673281,-150.0,0.00041883,120]
[406614151,1771974673290,-158.38200706,0.00041883,120]
[406614152,1771974673298,-1100.0,0.00041892,30]
[406614153,1771974673307,-434.0,0.000419,2]
[406614154,1771974673317,-5531.0,0.000419,3]
[406614155,1771974673326,-900.0,0.00041902,30]
[406614156,1771974673335,-800.0,0.00041926,30]
[406614157,1771974673344,-1800.0,0.00041938,30]
[406614158,1771974673353,-900.0,0.00041938,30]
[406614159,1771974673362,-500.0,0.00041953,30]
[406614160,1771974673371,-1700.0,0.00041988,30]
[406614161,1771974673381,-5000.12345678,0.00042,5]
[406614162,1771974673390,-5000.53334409,0.00042,4]
[406614163,1771974673400,-801.86607465,0.00042,2]
[406614164,1771974673409,-2000.0,0.00042,30]
[406614165,1771974673418,-515.0,0.00042,30]
[406614166,1771974673427,-1295.0,0.00042,2]
[406614167,1771974673437,-2238.4642,0.00042,2]
[406614168,1771974673447,-10000.0,0.00042,120]
[406614169,1771974673456,-10000.0,0.00042,120]
[406614170,1771974673465,-223.4889152,0.0004201,30]
[406614171,1771974673474,-1100.0,0.00042024,30]
[406614172,1771974673484,-152.0,0.00042029,11]
[406614173,1771974673495,-900.0,0.00042039,30]
[406614174,1771974673504,-700.0,0.00042041,30]
[406614175,1771974673514,-500.0,0.00042059,30]
[406614176,1771974673523,-1277.0,0.0004206,2]
[406614177,1771974673532,-1210.0,0.00042063,2]
[406614178,1771974673541,-900.0,0.00042078,30]
[406614179,1771974673550,-1700.0,0.00042087,30]
[406614180,1771974673560,-154.0,0.000421,120]
[406614181,1771974673569,-413.0,0.00042104,2]
[406614182,1771974673578,-800.0,0.00042104,30]
[406614183,1771974673587,-1100.0,0.00042147,30]
[406614184,1771974673596,-500.0,0.00042155,30]
[406614185,1771974673605,-800.0,0.00042174,30]
[406614186,1771974673616,-500.0,0.00042194,30]
[406614187,1771974673625,-900.0,0.00042211,30]
[406614188,1771974673635,-900.0,0.00042225,30]
[406614189,1771974673643,-500.0,0.00042233,30]
[406614190,1771974673653,-1700.0,0.00042234,30]
[406614191,1771974673662,-1700.0,0.00042251,30]
[406614192,1771974673671,-1800.0,0.00042252,30]
[406614193,1771974673680,-900.0,0.00042268,30]
[406614194,1771974673689,-500.0,0.00042313,30]
[406614195,1771974673698,-1700.0,0.00042337,30]
[406614196,1771974673707,-800.0,0.00042353,30]
[406614197,1771974673717,-900.0,0.00042356,30]
[406614198,1771974673727,-840.44614434,0.00042375,30]
[406614199,1771974673737,-800.0,0.00042381,30]
[406614200,1771974673747,-900.0,0.00042382,30]
[406614201,1771974673757,-900.0,0.00042399,30]
[406614202,1771974673766,-24668.16,0.000424,2]
[406614203,1771974673775,-900.0,0.00042406,30]
[406614204,1771974673785,-1800.0,0.00042417,30]
[406614205,1771974673795,-1100.0,0.00042426,30]
[406614206,1771974673804,-700.0,0.00042433,30]
[406614207,1771974673813,-1700.0,0.00042438,30]
[406614208,1771974673822,-700.0,0.00042443,30]
[406614209,1771974673832,-500.0,0.00042462,30]
[406614210,1771974673842,-900.0,0.00042463,30]
[406614211,1771974673851,-700.0,0.00042468,30]
[406614212,1771974673860,-1363.3,0.00042483,30]
[406614213,1771974673870,-1100.0,0.00042487,30]
[406614214,1771974673879,-700.0,0.0004249,30]
[406614215,1771974673889,-500.0,0.00042493,30]
[406614216,1771974673898,-7180.73739403,0.000425,25]
[406614217,1771974673907,-2181.28,0.00042504,120]
[406614218,1771974673920,-1700.0,0.00042509,30]
[406614219,1771974673930,-1100.0,0.00042512,30]
[406614220,1771974673939,-500.0,0.00042513,30]
[406614221,1771974673948,-900.0,0.00042551,30]
[406614222,1771974673959,-800.0,0.00042562,30]
[406614223,1771974673968,-168.82963489,0.00042564,30]
[406614224,1771974673977,-500.0,0.00042569,30]
[406614225,1771974673986,-1700.0,0.0004257,30]
[406614226,1771974673998,-934.97647106,0.00042589,30]
[406614227,1771974674007,-1100.0,0.00042589,30]
[406614228,1771974674017,-700.0,0.00042599,30]
[406614229,1771974674026,-800.0,0.00042606,30]
[406614230,1771974674035,-1100.0,0.00042606,30]
[406614231,1771974674045,-500.0,0.00042617,30]
[406614232,1771974674054,-900.0,0.0004263,30]
[406614233,1771974674063,-500.0,0.00042656,30]
[406614234,1771974674074,-1800.0,0.00042665,30]
[406614235,1771974674083,-1800.0,0.00042666,30]
[406614236,1771974674093,-800.0,0.00042686,30]
[406614237,1771974674104,-500.0,0.00042694,30]
[406614238,1771974674113,-79357.15941098,0.0004272,2]
[406614239,1771974674123,-500.0,0.00042723,30]
[406614240,1771974674132,-500.0,0.00042724,30]
[406614241,1771974674141,-557.75876289,0.00042728,30]
[406614242,1771974674150,-515.0,0.00042733,10]
[406614243,1771974674160,-900.0,0.00042734,30]
[406614244,1771974674169,-155.71,0.0004274,91]
[406614245,1771974674178,-500.0,0.00042745,30]
[406614246,1771974674187,-900.0,0.00042745,30]
[406614247,1771974674197,-500.0,0.00042747,30]
[406614248,1771974674206,-1100.0,0.00042768,30]
[406614249,1771974674216,-474.81,0.00042776,2]
[406614250,1771974674225,-1040.0,0.00042776,2]
[406614251,1771974674234,-1700.0,0.00042777,30]
[406614252,1771974674244,-154.0,0.000428,120]
[406614253,1771974674254,-700.0,0.00042802,30]
[406614254,1771974674264,-173.54498154,0.00042846,30]
[406614255,1771974674273,-1100.0,0.00042865,30]
[406614256,1771974674282,-500.0,0.00042898,30]
[406614257,1771974674292,-700.0,0.00042939,30]
[406614258,1771974674301,-800.0,0.00042941,30]
[406614259,1771974674311,-1700.0,0.00042941,30]
[406614260,1771974674319,-1700.0,0.00042963,30]
[406614261,1771974674328,-900.0,0.00042975,30]
[406614262,1771974674338,-700.0,0.00042987,30]
[406614263,1771974674348,-2031.0,0.00043,120]
[406614264,1771974674358,-1016.0,0.00043,120]
[406614265,1771974674368,-10000.0,0.00043,120]
[406614266,1771974674378,-500.0,0.00043009,30]
[406614267,1771974674387,-1700.0,0.0004302,30]
[406614268,1771974674399,-500.0,0.00043023,30]
[406614269,1771974674409,-800.0,0.00043028,30]
[406614270,1771974674418,-1800.0,0.00043035,30]
[406614271,1771974674428,-500.0,0.00043044,30]
[406614272,1771974674437,-700.0,0.00043045,30]
[406614273,1771974674447,-700.0,0.00043052,30]
[406614274,1771974674456,-2097.0444,0.00043056,2]
[406614275,1771974674465,-900.0,0.0004306,30]
[406614276,1771974674475,-700.0,0.00043066,30]
[406614277,1771974674485,-200.0,0.00043068,120]
[406614278,1771974674495,-200.0,0.00043068,120]
[406614279,1771974674504,-771.01016825,0.00043071,30]
[406614280,1771974674513,-1700.0,0.00043071,30]
[406614281,1771974674523,-800.0,0.00043074,30]
[406614282,1771974674532,-500.0,0.00043085,30]
[406614283,1771974674542,-900.0,0.00043095,30]
[406614284,1771974674552,-154.0,0.000431,120]
[406614285,1771974674561,-5531.0,0.000431,5]
[406614286,1771974674571,-500.0,0.00043103,30]
[406614287,1771974674580,-500.0,0.00043139,61]
[406614288,1771974674590,-1100.0,0.00043142,30]
[406614289,1771974674599,-500.0,0.00043171,30]
[406614290,1771974674608,-1800.0,0.00043171,30]
[406614291,1771974674618,-392.76826941,0.00043173,30]
[406614292,1771974674628,-700.0,0.00043174,30]
[406614293,1771974674637,-500.0,0.00043199,30]
[406614294,1771974674646,-484.09035768,0.00043209,30]
[406614295,1771974674656,-2097.0444,0.0004321,2]
[406614296,1771974674666,-1100.0,0.00043219,30]
[406614297,1771974674676,-800.0,0.00043238,30]
[406614298,1771974674685,-1100.0,0.00043245,30]
[406614299,1771974674695,-700.0,0.00043255,30]
[406614300,1771974674704,-152.0,0.00043256,12]
[406614301,1771974674714,-1100.0,0.00043256,30]
[406614302,1771974674724,-725.57905668,0.00043265,30]
[406614303,1771974674734,-900.0,0.00043266,30]
[406614304,1771974674743,-1700.0,0.00043274,30]
[406614305,1771974674753,-500.0,0.00043295,30]
[406614306,1771974674762,-1800.0,0.00043297,30]
[406614307,1771974674772,-700.0,0.00043298,30]
[406614308,1771974674782,-898.53555328,0.0004332,30]
[406614309,1771974674791,-49999.99995,0.00043335,2]
[406614310,1771974674801,-2097.0444,0.00043363,2]
[406614311,1771974674810,-1100.0,0.00043374,30]
[406614312,1771974674820,-500.0,0.00043381,30]
[406614313,1771974674829,-800.0,0.00043425,30]
[406614314,1771974674839,-900.0,0.00043425,30]
[406614315,1771974674849,-500.0,0.0004343,30]
[406614316,1771974674859,-500.0,0.00043449,30]
[406614317,1771974674868,-500.0,0.0004345,30]
[406614318,1771974674878,-800.0,0.00043455,30]
[406614319,1771974674887,-500.0,0.00043455,30]
[406614320,1771974674897,-900.0,0.00043474,30]
[406614321,1771974674907,-500.0,0.00043477,30]
[406614322,1771974674920,-700.0,0.00043479,30]
[406614323,1771974674929,-685.2863,0.00043491,2]
[406614324,1771974674939,-900.0,0.00043508,30]
[406614325,1771974674949,-500.0,0.00043516,30]
[406614326,1771974674960,-2097.0444,0.00043517,2]
[406614327,1771974674969,-900.0,0.00043558,30]
[406614328,1771974674979,-500.0,0.00043606,30]
[406614329,1771974674993,-203.29162849,0.00043636,30]
[406614330,1771974675002,-350.0,0.0004364,2]
[406614331,1771974675012,-1100.0,0.0004364,30]
[406614332,1771974675022,-900.0,0.0004366,30]
[406614333,1771974675031,-800.0,0.00043663,30]
[406614334,1771974675041,-2097.0444,0.00043671,2]
[406614335,1771974675051,-900.0,0.000437,30]
[406614336,1771974675061,-800.0,0.00043702,30]
[406614337,1771974675072,-500.0,0.00043708,30]
[406614338,1771974675081,-1800.0,0.00043709,30]
[406614339,1771974675091,-900.0,0.0004371,30]
[406614340,1771974675101,-500.0,0.00043711,30]
[406614341,1771974675111,-900.0,0.00043732,30]
[406614342,1771974675120,-800.0,0.00043738,30]
[406614343,1771974675129,-1800.0,0.00043738,30]
[406614344,1771974675139,-500.0,0.00043743,30]
[406614345,1771974675150,-700.0,0.00043781,30]
[406614346,1771974675160,-500.0,0.00043788,30]
[406614347,1771974675170,-800.0,0.00043803,30]
[406614348,1771974675180,-168.85731183,0.00043808,120]
[406614349,1771974675189,-2097.0444,0.00043825,2]
[406614350,1771974675199,-500.0,0.00043835,30]
[406614351,1771974675210,-151.0,0.00043836,120]
[406614352,1771974675219,-151.0,0.00043836,120]
[406614353,1771974675228,-151.0,0.00043836,120]
[406614354,1771974675237,-151.0,0.00043836,120]
[406614355,1771974675247,-151.0,0.00043836,120]
[406614356,1771974675257,-151.0,0.00043836,120]
[406614357,1771974675419,-151.0,0.00043836,120]
[406614358,1771974675428,-151.0,0.00043836,120]
[406614359,1771974675438,-151.0,0.00043836,120]
[406614360,1771974675447,-151.0,0.00043836,120]
[406614361,1771974675458,-151.0,0.00043836,120]
[406614362,1771974675467,-151.0,0.00043836,120]
[406614363,1771974675476,-151.0,0.00043836,120]
[406614364,1771974675486,-151.0,0.00043836,120]
[406614365,1771974675496,-151.0,0.00043836,120]
[406614366,1771974675505,-151.0,0.00043836,120]
[406614367,1771974675514,-151.0,0.00043836,120]
[406614368,1771974675524,-151.0,0.00043836,120]
[406614369,1771974675533,-298.556101,0.00043836,120]
[406614370,1771974675543,-151.0,0.00043836,120]
[406614371,1771974675553,-151.0,0.00043836,120]
[406614372,1771974675562,-151.0,0.00043836,120]
[406614373,1771974675572,-188.188828,0.00043836,120]
[406614374,1771974675582,-500.0,0.00043844,30]
[406614375,1771974675592,-1100.0,0.00043849,30]
[406614376,1771974675603,-700.0,0.0004391,30]
[406614377,1771974675613,-500.0,0.00043924,30]
[406614378,1771974675623,-2055.859,0.0004393,2]
[406614379,1771974675633,-500.0,0.00043936,30]
[406614380,1771974675643,-800.0,0.00043941,30]
[406614381,1771974675653,-200.0,0.0004396,2]
[406614382,1771974675662,-200.0,0.0004396,2]
[406614383,1771974675673,-200.0,0.0004396,2]
[406614384,1771974675682,-200.0,0.0004396,2]
[406614385,1771974675692,-200.0,0.0004396,2]
[406614386,1771974675701,-200.0,0.0004396,2]
[406614387,1771974675711,-200.0,0.0004396,2]
[406614388,1771974675720,-200.0,0.0004396,2]
[406614389,1771974675731,-200.0,0.0004396,2]
[406614390,1771974675740,-200.0,0.0004396,2]
[406614391,1771974675751,-200.0,0.0004396,2]
[406614392,1771974675760,-200.0,0.0004396,2]
[406614393,1771974675769,-200.0,0.0004396,2]
[406614394,1771974675778,-200.0,0.0004396,2]
[406614395,1771974675788,-200.0,0.0004396,2]
[406614396,1771974675797,-200.0,0.0004396,2]
[406614397,1771974675806,-321.0,0.0004396,2]
[406614398,1771974675817,-900.0,0.00043972,30]
[406614399,1771974675828,-2097.0444,0.00043978,2]
[406614400,1771974675839,-73124.67461779,0.00044,6]
[406614401,1771974675848,-2866.63,0.00044,30]
[406614402,1771974675857,-35603.94146405,0.00044,2]
[406614403,1771974675867,-10000.0,0.00044,120]
[406614404,1771974675876,-898.80943196,0.00044008,30]
[406614405,1771974675886,-900.0,0.00044025,30]
[406614406,1771974675895,-900.0,0.00044054,30]
[406614407,1771974675905,-500.0,0.00044064,30]
[406614408,1771974675920,-1800.0,0.00044071,30]
[406614409,1771974675930,-500.0,0.00044075,30]
[406614410,1771974675941,-700.0,0.00044077,30]
[406614411,1771974675951,-1100.0,0.00044078,30]
[406614412,1771974675960,-900.0,0.00044081,30]
[406614413,1771974675971,-900.0,0.00044088,30]
[406614414,1771974675980,-500.0,0.00044093,30]
[406614415,1771974675991,-154.0,0.000441,120]
[406614416,1771974676001,-882.71371045,0.00044103,30]
[406614417,1771974676010,-900.0,0.00044103,30]
[406614418,1771974676020,-2055.859,0.00044113,2]
[406614419,1771974676030,-800.0,0.00044119,30]
[406614420,1771974676040,-2097.0444,0.00044132,2]
[406614421,1771974676049,-500.0,0.0004414,30]
[406614422,1771974676059,-2841.0,0.00044149,16]
[406614423,1771974676068,-272.66,0.00044158,120]
[406614424,1771974676082,-514.45132365,0.00044163,30]
[406614425,1771974676092,-704.37882443,0.00044166,30]
[406614426,1771974676101,-900.0,0.00044169,30]
[406614427,1771974676111,-1800.0,0.00044181,30]
[406614428,1771974676120,-1689.98959999,0.00044189,30]
[406614429,1771974676130,-1800.0,0.0004423,30]
[406614430,1771974676139,-1100.0,0.00044234,30]
[406614431,1771974676148,-1700.0,0.00044252,30]
[406614432,1771974676158,-1514.80318033,0.00044253,30]
[406614433,1771974676168,-2097.0444,0.00044286,2]
[406614434,1771974676177,-2149.16632552,0.00044288,30]
[406614435,1771974676187,-2055.859,0.00044296,2]
[406614436,1771974676196,-154.0,0.000443,120]
[406614437,1771974676206,-870.452302,0.0004431,30]
[406614438,1771974676215,-1800.0,0.00044311,30]
[406614439,1771974676226,-1100.0,0.00044326,30]
[406614440,1771974676235,-800.0,0.00044332,30]
[406614441,1771974676246,-181.68,0.00044332,120]
[406614442,1771974676256,-500.0,0.00044348,30]
[406614443,1771974676266,-500.0,0.00044362,30]
[406614444,1771974676276,-1100.0,0.00044362,30]
[406614445,1771974676286,-900.0,0.00044387,30]
[406614446,1771974676296,-1100.0,0.00044401,30]
[406614447,1771974676305,-1800.0,0.00044404,30]
[406614448,1771974676315,-971.18053332,0.00044431,30]
[406614449,1771974676324,-810.0,0.0004444,30]
[406614450,1771974676334,-2097.0444,0.0004444,2]
[406614451,1771974676344,-1107.15371826,0.00044466,30]
[406614452,1771974676354,-2800.0,0.00044474,30]
[406614453,1771974676363,-1161.00917083,0.00044477,30]
[406614454,1771974676372,-2055.859,0.00044479,2]
[406614455,1771974676381,-152.0,0.00044483,13]
[406614456,1771974676391,-762.0,0.000445,120]
[406614457,1771974676400,-515.0,0.00044507,10]
[406614458,1771974676410,-685.2863,0.00044578,2]
[406614459,1771974676419,-2097.0444,0.00044594,2]
[406614460,1771974676428,-24668.16,0.000446,2]
[406614461,1771974676438,-350.0,0.00044641,2]
[406614462,1771974676447,-2055.859,0.00044662,2]
[406614463,1771974676456,-475.12,0.000447,120]
[406614464,1771974676466,-2097.0444,0.00044747,2]
[406614465,1771974676475,-150.0,0.00044818,120]
[406614466,1771974676484,-2055.859,0.00044846,2]
[406614467,1771974676493,-500.0,0.00044865,61]
[406614468,1771974676502,-1000.0,0.000449,2]
[406614469,1771974676512,-2097.0444,0.00044901,2]
[406614470,1771974676521,-3670.74,0.00044932,120]
[406614471,1771974676530,-1000.0,0.00044963,30]
[406614472,1771974676541,-1000.0,0.00044963,30]
[406614473,1771974676550,-1000.0,0.00044963,30]
[406614474,1771974676559,-1551.94027576,0.00044963,30]
[406614475,1771974676568,-350.0,0.00044985,2]
[406614476,1771974676578,-126049.27001394,0.00045,2]
[406614477,1771974676587,-160.5,0.00045,5]
[406614478,1771974676597,-333.92416108,0.00045,2]
[406614479,1771974676606,-963.91,0.00045,120]
[406614480,1771974676615,-1000.0,0.00045,30]